[Event "Cattolica Chess Festival 2022"]
[Site "Cattolica"]
[Date "2022.06.06"]
[Round "3.4"]
[White "Kolb, Tobias"]
[Black "Schmider, Niklas"]
[Result "0-1"]
[ECO "E51"]
[WhiteElo "2345"]
[BlackElo "2393"]
[Annotator "TA"]
[PlyCount "90"]
[EventDate "2022.06.04"]
[EventCountry "ITA"]
[SourceTitle "playchess.com"]
[Source "ChessBase"]
[SourceQuality "1"]
[TimeControl "5400+30"]

{[%evp 11,90,-13,6,6,11,0,0,0,0,0,0,0,0,0,25,8,21,24,15,20,25,18,25,12,15,-8,0,-41,25,21,40,6,88,72,77,9,20,34,32,42,143,143,142,131,138,143,122,95,278,222,241,189,221,176,132,63,49,70,67,-57,-31,-229,-242,-216,-227,-323,-325,-518,-512,-483,-112,-93,-85,-96,-86,-1237,-1268,-29986,-29987,-29987,-29988]} 1. d4 {[%emt 0:30:02]} Nf6 {[%emt 0:32:06]} 2. c4 {[%emt 0:00:02]} e6 {[%emt 0:00:13]} 3. Nc3 {[%emt 0:00:03]} Bb4 {[%emt 0:00:17]} 4. e3 {[%emt 0:00:04]} O-O {[%emt 0:00:08]} 5. Bd2 {[%emt 0:00:15]} d5 {[%emt 0:00:39]} 6. Nf3 {[%emt 0:00:08]} Nbd7 {[%emt 0:00:26]} 7. cxd5 {[%emt 0:06:39] 7.Rc1 is setting a new trend. E51: Nimzo-Indian: Rubinstein: 4...0-0 5 Nf3 d5.} exd5 {[%emt 0:00:29]} 8. Bd3 {[%emt 0:00:36]} c6 {[%emt 0:06:05]} 9. O-O {[%emt 0:00:25] The position is equal.} Re8 {[%emt 0:00:29]} 10. Qc2 {[%emt 0:06:39]} Bd6 {[%emt 0:03:03]} 11. Rfe1 {[%emt 0:03:21]} Nf8 {[%emt 0:04:53]} 12. h3 {[%emt 0:07:40] Against Bg4} Ng6 {[%emt 0:03:15]} 13. Rad1 {[%emt 0:11:37] [#]} Bd7 $146 {[%emt 0:13:19]} ({Predecessor:} 13... Be6 14. a3 Qc8 15. e4 Bf4 16. e5 Nh5 17. Bxg6 hxg6 18. Bxf4 Nxf4 19. Qd2 Nh5 {1-0 (60) De Miguel Fernandez,B-Prieto Perez,R Gijon 2000}) 14. a3 {[%emt 0:04:58]} Qc7 {[%emt 0:02:44]} 15. Rc1 {[%emt 0:00:52][%cal Oc3b5]} Rac8 {[%emt 0:00:43]} 16. b4 {[%emt 0:03:26][%cal Bb2b4,Bb4b5][%mdl 32]} Qb8 {[%emt 0:02:12]} 17. Ng5 {[%emt 0:01:57]} Re7 {[%emt 0:01:38]} 18. Qb1 {[%emt 0:07:38]} Rce8 {[%emt 0:06:44]} 19. a4 {[%emt 0:00:56]} Nf8 {[%emt 0:01:23]} ({Better is} 19... Bh2+ $15 20. Kh1 Bc7) 20. b5 $11 {[%emt 0:00:33]} Qd8 {[%emt 0:00:32]} 21. e4 {[%emt 0:04:06]} dxe4 {[%emt 0:01:27]} (21... h6 $11 {remains equal.}) 22. Ncxe4 $16 {[%emt 0:00:08]} (22. Ngxe4 {is more complex.} Nxe4 23. Nxe4 Qb8 24. g3) 22... Nxe4 {[%emt 0:02:48]} 23. Bxe4 {[%emt 0:04:25]} (23. Nxe4 $16 Qb8 24. Nc5 (24. Nxd6 Rxe1+ 25. Rxe1 Rxe1+ 26. Qxe1 Qxd6 $14)) 23... cxb5 {[%emt 0:07:55] [#] Strongly threatening ...h6.} 24. Bxh7+ {[%emt 0:01:06]} Kh8 {[%emt 0:00:03]} 25. Bd3 {[%emt 0:00:48]} (25. axb5 g6 26. Nxf7+ (26. Rxe7 Rxe7 27. Bxg6 Nxg6 $17) 26... Rxf7 27. Rxe8 Qxe8 28. Bxg6 Nxg6 29. Qxg6 Qe6 30. Qxe6 Bxe6 $17) 25... f6 {[%emt 0:07:05]} (25... bxa4 $14 26. Rxe7 Rxe7) 26. Ne4 $36 {[%emt 0:01:37][%mdl 2048] White is on the roll.} Ba3 {[%emt 0:00:06]} 27. Rc3 {[%emt 0:00:05][%cal Bc1c3,Bc3c5,Bc5h5][%mdl 32]} ({Worse is} 27. axb5 Bxc1 28. Rxc1 Bf5 $15) 27... b4 {[%emt 0:00:19]} 28. Rc5 {[%emt 0:00:03] [#] And now Nd6 would win.} Be6 {[%emt 0:01:49]} 29. Bb5 {[%emt 0:03:37]} ({Reject} 29. Bxb4 $6 Bxb4 30. Qxb4 Bd5 $11) 29... Qxd4 $2 {[%emt 0:01:24]} 30. Bxe8 {[%emt 0:00:47]} Rxe8 {[%emt 0:00:32]} 31. Be3 {[%emt 0:00:00]} Qd7 {[%emt 0:00:00]} 32. Rh5+ {[%emt 0:00:00]} Kg8 {[%emt 0:00:00]} 33. Nc5 {[%emt 0:00:00]} (33. Bxa7 $16 {Black must now prevent Rb5.} Qxa4 34. Bc5) 33... Qf7 $14 {[%emt 0:00:00]} 34. Rh4 {[%emt 0:00:00]} Ba2 {[%emt 0:00:00]} 35. Qd3 {[%emt 0:00:00]} (35. Qa1 $1 $14) 35... b3 $15 {[%emt 0:00:00][%cal Bb4b3,Bb3b2][%mdl 1056] Black has compensation.} 36. Ne4 {[%emt 0:00:00]} (36. Rd1 $15) 36... Ng6 $19 {[%emt 0:00:00]} 37. Rh5 {[%emt 0:00:00]} Ne5 {[%emt 0:00:00]} ({Stronger than} 37... Nf4 38. Bxf4 Qxh5 39. Be3) 38. Qe2 {[%emt 0:03:38]} (38. Rxe5 {is a better defense.} Rxe5 39. Bf4) 38... b2 {[%emt 0:00:00] aiming for ...Bc4. The board is on fire.} 39. Nc3 {[%emt 0:00:13]} (39. Nd2 {was called for.}) 39... Bc4 {[%emt 0:00:00]} 40. Qd1 {[%emt 0:00:05]} Bb4 $2 {[%emt 0:00:00] A strong pair of Bishops.} (40... Nd3 $19 {and Black stays clearly on top.} 41. Rf1 Bb4) 41. Rxe5 $17 {[%emt 0:00:29]} Rxe5 {[%emt 0:00:00]} 42. Qc2 {[%emt 0:00:01]} Bd5 {[%emt 0:00:20] Black is more active.} 43. Rb1 $2 {[%emt 0:01:28][%mdl 8192]} (43. Qxb2 $17 a5 44. Rd1) 43... Bxc3 $19 {[%emt 0:00:35]} 44. Qxc3 {[%emt 0:00:07]} Qg6 {[%emt 0:00:07][%csl Gd5,LRb1,LRg2][%cal Rg6g2]} 45. Qc8+ {[%emt 0:00:30]} Kh7 {[%emt 0:00:29] Weighted Error Value: White=0.61/Black=0.38} 0-1

[Event "Cattolica Chess Festival 2022"]
[Site "Cattolica"]
[Date "2022.06.06"]
[Round "3.5"]
[White "Buksa, Nataliya"]
[Black "Bernadskiy, Vitaliy"]
[Result "1/2-1/2"]
[ECO "B15"]
[WhiteElo "2406"]
[BlackElo "2636"]
[Annotator "TA"]
[PlyCount "96"]
[EventDate "2022.06.04"]
[EventCountry "ITA"]
[SourceTitle "playchess.com"]
[Source "ChessBase"]
[SourceQuality "1"]
[TimeControl "5400+30"]

{[%evp 12,96,20,31,45,32,46,13,58,53,54,42,74,15,33,34,40,4,16,13,13,14,18,10,22,11,19,0,25,14,46,22,31,35,46,16,34,27,18,0,0,27,24,35,44,41,81,72,78,73,81,0,0,7,0,0,72,0,0,0,0,0,0,0,0,0,0,-87,-95,-44,0,-302,0,0,0,0,0,0,0,0,0,0,0,0,0,0,0]} 1. e4 {[%emt 0:30:02]} c6 {[%emt 1:00:18]} 2. d4 {[%emt 0:00:23]} d5 {[%emt 0:00:03]} 3. Nc3 {[%emt 0:00:03]} dxe4 {[%emt 0:00:04]} 4. Nxe4 {[%emt 0:00:03]} Nf6 {[%emt 0:00:09]} 5. Nxf6+ {[%emt 0:00:42]} exf6 {[%emt 0:00:06]} 6. c3 {[%emt 0:00:02]} Bd6 {[%emt 0:00:04]} 7. Bd3 {[%emt 0:00:05]} Na6 {[%emt 0:00:04] B15: Caro-Kann: 3 Nc3: 3...g6 and 3...dxe4 4 Nxe4 Nf6 5 Nxf6+ exf6.} 8. Ne2 {[%emt 0:03:58]} Nc7 {[%emt 0:03:26]} 9. O-O {[%emt 0:02:10]} h5 {[%emt 0:01:41]} 10. Re1 {[%emt 0:06:15]} Kf8 {[%emt 0:00:31]} 11. Ng3 {[%emt 0:07:22]} h4 {[%emt 0:02:02]} 12. Nf5 {[%emt 0:05:37] White is more active.} (12. Ne4 $16) 12... Bxf5 $11 {[%emt 0:00:34]} 13. Bxf5 {[%emt 0:00:04]} g6 {[%emt 0:00:16]} 14. Bc2 {[%emt 0:01:20]} Kg7 {[%emt 0:03:07]} 15. Qf3 {[%emt 0:04:52] [#]} Qd7 $146 {[%emt 0:02:45]} ({Predecessor:} 15... a5 16. a4 Nd5 17. Bb3 Rh5 18. Bxd5 cxd5 19. Qh3 Rf5 20. b3 Rc8 21. Bd2 Qc7 {0-1 (44) Petriashvili,N (2425)-Lortkipanidze,N (2416) Tbilisi 2021}) 16. Bd2 {[%emt 0:02:09]} a5 {[%emt 0:04:16]} 17. Rad1 {[%emt 0:01:26]} Rae8 {[%emt 0:00:36]} 18. Rxe8 {[%emt 0:03:01]} Rxe8 {[%emt 0:00:31]} 19. c4 {[%emt 0:00:03]} Bb4 {[%emt 0:01:39]} 20. Be3 {[%emt 0:00:12]} Be7 {[%emt 0:01:08]} 21. Qf4 {[%emt 0:15:46] White wants to play d5.} Rh8 {[%emt 0:00:10]} 22. h3 {[%emt 0:03:34]} b5 {[%emt 0:03:59]} 23. b3 {[%emt 0:00:21]} (23. d5 $5 cxd5 24. cxd5 $14) 23... a4 {[%emt 0:00:13]} 24. d5 {[%emt 0:02:14]} cxd5 {[%emt 0:04:59]} 25. cxb5 {[%emt 0:00:32]} Nxb5 {[%emt 0:00:11]} 26. Qxa4 {[%emt 0:04:28] Black must now prevent Bd3.} Qc8 {[%emt 0:02:14]} 27. Qxb5 {[%emt 0:03:22]} Qxc2 {[%emt 0:00:06]} 28. Rd2 $36 {[%emt 0:00:02][%mdl 2048] White has the initiative.} (28. Qxd5 Rd8 29. Qxd8 Bxd8 30. Rxd8 Qxa2 $17) 28... Qb1+ {[%emt 0:01:43]} 29. Qf1 {[%emt 0:00:04]} Qf5 {[%emt 0:00:38]} 30. Qd3 {[%emt 0:02:27]} Qe5 {[%emt 0:00:15]} 31. a4 {[%emt 0:00:00]} (31. Qxd5 Qa1+ 32. Rd1 Qxa2 $11) (31. Rd1 $16) 31... Rc8 {[%emt 0:00:00][%cal Od5d4,Bh8c8,Bc8c2,Bc2c1,Bc1g1][%mdl 32] Hoping for ...d4!} 32. Rd1 {[%emt 0:00:00]} Bd6 {[%emt 0:00:00]} 33. Qxd5 {[%emt 0:00:00]} Qh2+ {[%emt 0:00:00]} 34. Kf1 {[%emt 0:00:00]} Rc2 {[%emt 0:00:00][%cal Rh2h1]} 35. Rd2 {[%emt 0:00:00]} Rc1+ {[%emt 0:00:00]} (35... Qh1+ $2 36. Ke2 Rxd2+ 37. Bxd2 $18 (37. Qxd2 Be5 $16)) 36. Ke2 {[%emt 0:00:00] Rd4 is the strong threat.} Bf4 $1 {[%emt 0:00:00]} (36... Bb4 37. Rd4 Rc2+ 38. Kf3 $16) 37. Bxf4 {[%emt 0:00:00]} Qxf4 {[%emt 0:00:00][%mdl 4096] Endgame KQR-KQR} 38. Qd4 {[%emt 0:00:00]} Qh2 {[%emt 0:00:00]} 39. Kf3 {[%emt 0:00:00]} (39. Rd1 $11 {remains equal.} Rc6 40. Kf3 (40. Qxh4 Rc2+ 41. Rd2 Qe5+ 42. Kd1 Rxd2+ 43. Kxd2 Qb2+ 44. Ke1 Qc1+ 45. Ke2 Qc2+ 46. Ke3 Qxb3+ 47. Kd2 Qb2+ 48. Ke1 Qb1+ 49. Kd2 Qb2+ 50. Ke3 Qb3+ 51. Ke2 Qc2+ 52. Ke3 Qb3+ $11)) 39... Rg1 $17 {[%emt 0:00:00][%mdl 1024] Black has strong compensation.} 40. Qg4 {[%emt 0:00:00]} ({Avoid the trap} 40. Qxh4 $2 Qxg2+ 41. Ke3 Re1+ 42. Re2 Rc1 $19) 40... f5 {[%emt 0:00:00]} (40... Qb8 $5 {[%cal Rg1e1]} 41. Rd3 g5 $11) 41. Qg5 {[%emt 0:00:00][%mdl 8192] [#]} (41. Qd4+ $11 {and White is okay.} f6 42. Qxh4 (42. Ke3 $2 Qxg2 43. Qxh4 Re1+ 44. Kd3 Rc1 $17) 42... Qxg2+ 43. Ke2 Qf1+ 44. Kf3 Qg2+ 45. Ke2 Qf1+ 46. Kf3 Qg2+) 41... Qb8 $2 {[%emt 0:00:00]} ({Black should play} 41... Rxg2 $1 $19 {[%mdl 512]} 42. Qxg2 Qe5) 42. Qe3 $11 {[%emt 0:01:22] The position is equal.} Qb7+ {[%emt 0:03:37]} 43. Ke2 {[%emt 0:00:05] Strongly threatening Qd4+.} Qxg2 {[%emt 0:00:55] ( -> ...Qf1+)} 44. Qd4+ {[%emt 0:02:24]} f6 {[%emt 0:00:45] Threatens to win with ...Qf1+.} 45. Qxh4 {[%emt 0:00:05] Threatening mate with Rd7+.} Qf1+ {[%emt 0:01:18]} 46. Kf3 {[%emt 0:01:02]} Qg2+ {[%emt 0:00:33]} 47. Ke2 $1 {[%emt 0:00:03] Rd7+ would kill now. Really sharp!} Qf1+ {[%emt 0:01:30]} 48. Kf3 {[%emt 0:05:02] White wants to mate with Rd7+.} Qg2+ {[%emt 0:00:08] Weighted Error Value: White=0.27 (precise) /Black=0.17 (very precise)} 1/2-1/2

[Event "Cattolica Chess Festival 2022"]
[Site "Cattolica"]
[Date "2022.06.06"]
[Round "3.6"]
[White "Harshita Guddanti"]
[Black "Safarli, Eltaj"]
[Result "0-1"]
[ECO "C61"]
[WhiteElo "2208"]
[BlackElo "2600"]
[Annotator "TA"]
[PlyCount "48"]
[EventDate "2022.06.04"]
[EventCountry "ITA"]
[SourceTitle "playchess.com"]
[Source "ChessBase"]
[SourceQuality "1"]
[TimeControl "5400+30"]

{[%evp 9,48,20,23,25,13,-39,-46,-52,-53,-58,-48,-50,-47,-68,-79,-208,-47,-53,-68,-67,-44,-63,-40,-39,-41,-57,-60,-58,-49,-55,-26,-27,-10,-169,-140,-714,-134,-29987,-29988,-29996,-166]} 1. e4 {[%emt 0:30:12]} e5 {[%emt 0:32:29]} 2. Nf3 {[%emt 0:00:05]} Nc6 {[%emt 0:00:07]} 3. Bb5 {[%emt 0:00:04]} Nd4 {[%emt 0:00:05]} 4. Bc4 {[%emt 0:05:55]} Nxf3+ {[%emt 0:01:35]} 5. Qxf3 {[%emt 0:56:44]} Nf6 {[%emt 0:00:35]} 6. d4 {[%emt 0:00:00] C61: Ruy Lopez: Bird's Defence.} exd4 {[%emt 0:01:35] [#]} 7. e5 $146 {[%emt 0:00:00] [#] Inhibits Bd6.} (7. O-O $11) ({Predecessor:} 7. O-O d6 8. Qb3 Qe7 9. Bg5 h6 10. Bxf6 Qxf6 11. f4 Be7 12. e5 Qg6 13. f5 Bxf5 {0-1 (41) Ndirangu,R-Donmez,U (1915) Tornelo INT 2020}) 7... d5 $1 $15 {[%emt 0:02:43]} 8. exf6 {[%emt 0:00:00][%cal Oc1g5] Black must now prevent Bg5! Black is slightly better.} dxc4 {[%emt 0:00:02]} 9. Bg5 {[%emt 0:00:00]} Qd6 {[%emt 0:06:40]} ({Don't do} 9... Bb4+ 10. c3 dxc3 11. Nxc3 $11 (11. bxc3 O-O $14)) 10. O-O $1 {[%emt 0:00:00] Threatens to win with Re1+.} Qc6 {[%emt 0:05:51]} 11. Qf4 {[%emt 0:00:00]} Be6 {[%emt 0:03:12]} 12. Qxd4 {[%emt 0:00:00] [#]} (12. Nd2 $17) 12... Bc5 $2 {[%emt 0:01:45]} (12... Rg8 $1 $19 13. Rd1 Bc5) 13. Qc3 {[%emt 0:00:00]} g6 {[%emt 0:01:58]} 14. Rd1 {[%emt 0:00:00]} O-O {[%emt 0:01:42][%cal Bh8f8,Bf8e8,Be8e2,Be2e1,Be1f1][%mdl 32]} 15. Qg3 {[%emt 0:00:00]} Bf5 {[%emt 0:02:24]} (15... Rfe8 $5 {[%cal Re6f5]} 16. Nc3 Bf5 $17) 16. Nd2 {[%emt 0:00:00]} Bxc2 {[%emt 0:08:42]} 17. Rdc1 {[%emt 0:00:00]} Bd3 {[%emt 0:00:09] Hoping for ...Rfe8.} 18. Nxc4 {[%emt 0:02:19]} Bxc4 {[%emt 0:00:08] This bishop pair is nice.} 19. Qh4 $1 {[%emt 0:00:30] White wants to mate with Qh6.} Rfe8 {[%emt 0:00:21]} 20. Rxc4 {[%emt 0:01:11][%cal Og5e3]} Qd5 {[%emt 0:03:17] And now ...Re2 would win.} 21. Rf1 $2 {[%emt 0:03:17]} (21. Be3 $1 $11 Rad8 22. Rf1) 21... Re2 $40 {[%emt 0:00:20][%cal Oe2f2][%mdl 128] Strongly threatening ...Rxf2! Black is out for blood.} 22. b3 $2 {[%emt 0:00:40][%mdl 8192] [#]} (22. Rcc1 $17) 22... Rae8 $2 {[%emt 0:00:41]} (22... Rxf2 $1 $19 {[%mdl 512]} 23. Qxf2 Bxf2+ 24. Rxf2 Qxg5 25. Rxc7 Re8) 23. Rf4 $2 {[%emt 0:00:14][%mdl 8192]} (23. Qh6 $17 Bf8 24. Qh4) 23... Re1 {[%emt 0:00:23]} 24. Qg4 {[%emt 0:00:48]} Rxf1+ {[%emt 0:00:06] Weighted Error Value: White=0.66/Black=0.50} 0-1

[Event "Cattolica Chess Festival 2022"]
[Site "Cattolica"]
[Date "2022.06.06"]
[Round "3.7"]
[White "Shahil Dey"]
[Black "Korneev, Oleg"]
[Result "1/2-1/2"]
[ECO "B47"]
[WhiteElo "2369"]
[BlackElo "2521"]
[Annotator "TA"]
[PlyCount "133"]
[EventDate "2022.06.04"]
[EventCountry "ITA"]
[SourceTitle "playchess.com"]
[Source "ChessBase"]
[SourceQuality "1"]
[TimeControl "5400+30"]

{[%evp 24,133,43,45,49,56,55,54,58,58,39,7,21,16,22,2,7,0,0,0,15,0,0,0,0,0,0,-17,0,0,0,-36,-45,-66,-9,-31,-39,-61,-6,-7,-6,-6,-6,-6,-6,-7,-8,-72,-85,-85,-86,-126,-70,-91,-54,-60,-47,-48,0,-59,-8,-55,-55,-69,-68,-68,-68,-68,-68,-68,-68,-68,-68,-68,-68,-68,-68,-68,-37,-106,-106,-106,-106,-106,-106,-106,-106,-106,-8,-106,-106,-106,-106,-106,-8,-8,-13,-13,-13,-20,-20,-28,-28,-28,-28,-28,0,-8,-8,-8,-8,-8]} 1. e4 {[%emt 0:30:02]} c5 {[%emt 0:30:02]} 2. Nc3 {[%emt 0:00:09]} e6 {[%emt 0:00:23]} 3. Nge2 {[%emt 0:00:06]} a6 {[%emt 0:00:36]} 4. g3 {[%emt 0:00:09]} Nc6 {[%emt 0:01:05]} 5. d4 {[%emt 0:00:05]} cxd4 {[%emt 0:00:06]} 6. Nxd4 {[%emt 0:00:06]} Qc7 {[%emt 0:00:16]} 7. Bg2 {[%emt 0:00:06]} Nf6 {[%emt 0:00:34]} 8. O-O {[%emt 0:00:06]} Nxd4 {[%emt 0:03:38]} 9. Qxd4 {[%emt 0:00:07]} Bc5 {[%emt 0:00:08]} 10. Bf4 {[%emt 0:00:11]} d6 {[%emt 0:00:05]} 11. Qd2 {[%emt 0:00:07]} h6 {[%emt 0:00:07]} 12. Rad1 {[%emt 0:00:22]} e5 {[%emt 0:00:06]} 13. Be3 {[%emt 0:00:05]} Be6 {[%emt 0:02:53] B47: Sicilian: Taimanov: 5 Nc3 Qc7 6 f4, 6 g3 and 6 Be2.} 14. Bxc5 {[%emt 0:02:01]} dxc5 {[%emt 0:00:13]} 15. Nd5 {[%emt 0:14:46]} Bxd5 {[%emt 0:00:12] White is slightly better.} 16. exd5 {[%emt 0:00:04] Black must now prevent d6.} Qd6 {[%emt 0:01:53]} 17. f4 {[%emt 0:04:16]} O-O {[%emt 0:03:36]} 18. fxe5 {[%emt 0:02:46]} Qxe5 {[%emt 0:00:12]} 19. c3 {[%emt 0:01:30]} Qd6 {[%emt 0:03:56] [#]} 20. Rfe1 $146 {[%emt 0:04:39]} ({Predecessor:} 20. Qf4 Rfd8 21. Qxd6 Rxd6 22. Rfe1 Kf8 23. c4 a5 24. Rd3 Rb6 25. b3 Re8 26. Red1 {0-1 (38) Esserman,M (2447)-Macieja,B (2583) Santa Clara 2014}) 20... Rfe8 {[%emt 0:03:44]} 21. Qf4 {[%emt 0:06:59]} Rad8 {[%emt 0:06:39]} 22. Rxe8+ {[%emt 0:11:04]} Nxe8 {[%emt 0:00:12]} 23. Qf2 {[%emt 0:10:01]} Qc7 {[%emt 0:06:58]} 24. Re1 {[%emt 0:02:05]} Nd6 {[%emt 0:00:10]} 25. Re2 {[%emt 0:02:07]} Re8 {[%emt 0:01:46]} 26. Rxe8+ {[%emt 0:01:17]} Nxe8 $11 {[%emt 0:00:08][%mdl 4096] Endgame KQB-KQN} 27. b4 {[%emt 0:02:19]} cxb4 {[%emt 0:04:24]} 28. cxb4 {[%emt 0:00:02]} Nd6 {[%emt 0:00:22]} (28... Qe5 $15) 29. Qc5 {[%emt 0:01:42]} Qe7 {[%emt 0:00:16]} 30. a4 {[%emt 0:04:50]} g6 {[%emt 0:03:05]} (30... Qe5 $15) 31. Qc3 {[%emt 0:00:00]} Qe8 {[%emt 0:00:00]} 32. a5 {[%emt 0:00:00]} Nb5 {[%emt 0:00:00]} 33. Qd2 {[%emt 0:00:00]} Qe5 {[%emt 0:00:00]} 34. Kf2 {[%emt 0:00:00]} (34. Qf4 {looks sharper.} Qa1+ 35. Kf2 Qb2+ 36. Kg1) 34... g5 {[%emt 0:00:00]} (34... Kg7 {with more complications.} 35. h4 Nd6 36. Qf4 Qe7) 35. Bf3 {[%emt 0:00:00]} (35. h4 $1 $11) 35... Nd6 $36 {[%emt 0:00:00][%mdl 2048] Black is on the roll.} 36. Kg2 {[%emt 0:00:00]} Kg7 {[%emt 0:00:00]} 37. Qc2 {[%emt 0:00:00]} Nf5 {[%emt 0:00:00]} ({Black should play} 37... Qd4 $17 38. Qe2 Nf5) 38. Qd2 {[%emt 0:00:00]} Kf6 {[%emt 0:02:44]} 39. Kf2 {[%emt 0:00:00]} Nd6 {[%emt 0:10:33]} 40. Kg2 {[%emt 0:00:00]} Nf5 {[%emt 0:06:42]} 41. Kf2 $1 {[%emt 0:00:00]} Ke7 {[%emt 0:02:30]} ({Black should try} 41... Kg6 $1 $15) 42. Kg2 {[%emt 0:00:00]} (42. Qe1 $11 {feels stronger.} Qxe1+ 43. Kxe1) 42... Kd6 $15 {[%emt 0:00:38]} 43. b5 {[%emt 0:01:11]} Qd4 {[%emt 0:03:17] Prevents Qb4+.} 44. Qxd4 {[%emt 0:00:01]} Nxd4 {[%emt 0:00:05]} 45. bxa6 {[%emt 0:00:05]} bxa6 {[%emt 0:00:01] KB-KN} 46. Be4 {[%emt 0:00:05]} Nb3 {[%emt 0:01:25]} 47. Bd3 {[%emt 0:00:08]} Nxa5 {[%emt 0:00:32]} 48. Bxa6 {[%emt 0:00:01]} Kxd5 {[%emt 0:00:21]} 49. Kf3 {[%emt 0:01:56]} f5 $1 {[%emt 0:00:16]} 50. h4 {[%emt 0:00:39]} gxh4 {[%emt 0:00:21]} 51. g4 {[%emt 0:00:08]} (51. gxh4 $15 Ke5 52. Bc8) 51... Ke5 $17 {[%emt 0:01:47] [#] Threatens to win with ...f4.} 52. gxf5 {[%emt 0:00:01]} Kxf5 {[%emt 0:00:11]} 53. Bc8+ {[%emt 0:00:14]} Kg5 {[%emt 0:00:03]} 54. Be6 {[%emt 0:01:00]} Nc6 {[%emt 0:00:02]} 55. Ke4 {[%emt 0:00:45] Against Nd4} Ne7 {[%emt 0:00:27]} (55... Nb4 $17 56. Bc8 Nc6) 56. Kf3 {[%emt 0:00:22] [#]} (56. Ke3 $1 $11 {keeps the balance.}) 56... Ng6 $1 {[%emt 0:00:04]} 57. Bh3 {[%emt 0:00:31]} Nf4 {[%emt 0:01:13]} 58. Bc8 {[%emt 0:00:06]} h5 {[%emt 0:00:13]} ({Better is} 58... Nd3 $17 59. Ke4 Nc5+ 60. Ke3 Na4) 59. Bd7 $11 {[%emt 0:00:07]} Nd3 {[%emt 0:01:37]} 60. Be6 {[%emt 0:00:51]} Ne5+ {[%emt 0:00:13]} 61. Kg2 {[%emt 0:00:12]} Ng4 {[%emt 0:00:10]} 62. Kh3 {[%emt 0:00:07]} Ne3 {[%emt 0:00:10]} 63. Bd7 {[%emt 0:00:12]} Nd5 {[%emt 0:00:01]} 64. Kg2 {[%emt 0:01:08]} Nf4+ {[%emt 0:00:09]} 65. Kf3 {[%emt 0:00:03] The position is equal.} h3 {[%emt 0:00:10] ( -> ...h2)} 66. Kg3 {[%emt 0:00:10]} h4+ {[%emt 0:00:02]} (66... h2 $5 67. Kxh2 Ne2 $11) 67. Kh2 {[%emt 0:00:04] Weighted Error Value: White=0.14 (very precise) /Black=0.18 (very precise)} 1/2-1/2

[Event "Cattolica Chess Festival 2022"]
[Site "Cattolica"]
[Date "2022.06.06"]
[Round "3.8"]
[White "Rahul Srivatshav P"]
[Black "Souhardo Basak"]
[Result "1-0"]
[ECO "D37"]
[WhiteElo "2458"]
[BlackElo "2357"]
[Annotator "TA"]
[PlyCount "75"]
[EventDate "2022.06.04"]
[EventCountry "ITA"]
[SourceTitle "playchess.com"]
[Source "ChessBase"]
[SourceQuality "1"]
[TimeControl "5400+30"]

{[%evp 13,75,16,11,14,12,12,12,11,10,10,9,12,19,18,10,-23,0,0,10,2,7,0,0,0,0,0,24,0,7,9,0,0,16,13,52,49,75,60,70,82,189,177,173,131,210,198,331,252,308,205,211,200,576,567,913,890,837,829,1018,903,2021,1824,29983,1693]} 1. d4 {[%emt 0:34:42]} Nf6 {[%emt 0:30:08]} 2. c4 {[%emt 0:00:27]} e6 {[%emt 0:00:06]} 3. Nc3 {[%emt 0:00:11]} d5 {[%emt 0:00:05]} 4. Nf3 {[%emt 0:00:04]} Be7 {[%emt 0:00:06]} 5. Bf4 {[%emt 0:00:07]} O-O {[%emt 0:00:21]} 6. e3 {[%emt 0:00:03][%cal Be2e3,Be3f4][%mdl 32]} Nbd7 {[%emt 0:00:05]} 7. c5 {[%emt 0:01:01]} Nh5 {[%emt 0:00:10]} 8. Bd3 {[%emt 0:01:43] D37: Queen's Gambit Declined: 5 Bf4.} Nxf4 {[%emt 0:00:09]} 9. exf4 {[%emt 0:00:05]} b6 {[%emt 0:00:06]} 10. b4 {[%emt 0:05:36] The position is equal.} a5 {[%emt 0:00:10]} 11. a3 {[%emt 0:00:14]} c6 {[%emt 0:01:03]} 12. O-O {[%emt 0:00:27]} Qc7 {[%emt 0:00:08] 12...Ba6 might become the main line.} 13. g3 {[%emt 0:00:10]} Ba6 {[%emt 0:00:07]} 14. Ne2 {[%emt 0:01:19]} Bxd3 {[%emt 0:09:27]} 15. Qxd3 {[%emt 0:00:13]} Bf6 {[%emt 0:04:46] [#]} 16. Rab1 $146 {[%emt 0:06:13]} ({Predecessor:} 16. Qc3 axb4 17. axb4 bxc5 18. bxc5 Rxa1 19. Rxa1 g6 20. Ra6 Nb8 21. Ra4 Nd7 22. Qa5 {½-½ (28) Stips,F (2319)-Groeger,S (2087) Saarbruecken 2015}) 16... axb4 {[%emt 0:05:03]} 17. axb4 {[%emt 0:00:31]} Ra4 {[%emt 0:04:52]} 18. Kg2 {[%emt 0:12:06]} Rfa8 {[%emt 0:03:50]} 19. Rfc1 {[%emt 0:04:04]} Ra3 {[%emt 0:11:31]} 20. Rb3 {[%emt 0:04:02]} Rxb3 {[%emt 0:07:04]} 21. Qxb3 {[%emt 0:00:13]} Qb7 {[%emt 0:01:58]} 22. Qc2 {[%emt 0:02:42]} b5 {[%emt 0:03:07]} 23. Ne5 {[%emt 0:01:10]} Bxe5 {[%emt 0:00:31]} 24. dxe5 {[%emt 0:01:29]} Ra4 {[%emt 0:02:23]} 25. Rb1 {[%emt 0:01:33]} Qa6 {[%emt 0:03:03]} 26. Nd4 {[%emt 0:00:41] White is more active.} g6 {[%emt 0:01:34] [#] Inhibits f5.} (26... Nf8 $16 {is a better defense.}) 27. h4 $1 $18 {[%emt 0:00:09]} Ra2 {[%emt 0:02:49]} 28. Rb2 {[%emt 0:05:02]} Ra1 {[%emt 0:05:55]} (28... Rxb2 $16 29. Qxb2 Qc8) 29. h5 {[%emt 0:01:12]} Nb8 {[%emt 0:01:47]} (29... Qc8 {was worth a try.} 30. Ra2 Rxa2 31. Qxa2 Kf8) 30. hxg6 {[%emt 0:01:50]} hxg6 {[%emt 0:00:02] [#]} 31. Nxe6 $1 {[%emt 0:00:14][%mdl 512]} Qa4 {[%emt 0:00:00] And now ...Qxc2 would win.} 32. Nd4 {[%emt 0:00:00] Rb3 is the strong threat.} Kf8 $2 {[%emt 0:00:00]} (32... Qxc2 33. Nxc2 (33. Rxc2 Kf8 $16) 33... Ra4) 33. Rb3 {[%emt 0:00:00]} Re1 {[%emt 0:00:00]} 34. Nf3 {[%emt 0:00:00]} Re4 {[%emt 0:02:05]} 35. Qb2 {[%emt 0:00:00][%cal Oe5e6] Hoping for e6!} Ke7 {[%emt 0:01:16]} 36. e6 {[%emt 0:00:00]} Rxe6 {[%emt 0:00:38]} 37. Ra3 {[%emt 0:00:00]} Qd1 {[%emt 0:00:51]} 38. Ra7+ {[%emt 0:00:00] Weighted Error Value: White=0.09 (flawless) /Black=0.55} (38. Qh8 $142 Re2 39. Ra7+ Nd7 40. Nd4 Qxd4 41. Qxd4 Ke6 42. Qh8 Ne5 43. fxe5) 1-0